[Event "*** SCC Grand Prix: Titled Tuesday Blitz"]
[Site "Chess.com"]
[Date "2020.09.08"]
[Round "5"]
[White "Ariadna_Atreides"]
[Black "diablanni"]
[Result "1-0"]
[WhiteElo "2058"]
[BlackElo "2348"]
[TimeControl "180+1"]
[EndTime "10:56:29 PDT"]
[Termination "Ariadna_Atreides won on time"]

1. d4 {[%clk 0:03:00.8]} 1... Nf6 {[%clk 0:02:59.6]} 2. Nf3 {[%clk 0:03:00.4]}
2... e6 {[%clk 0:02:58.3]} 3. e3 {[%clk 0:03:00.2]} 3... c5 {[%clk 0:02:57.4]}
4. Bd3 {[%clk 0:02:59.8]} 4... d5 {[%clk 0:02:56.1]} 5. b3 {[%clk 0:02:59.2]}
5... Bd6 {[%clk 0:02:27]} 6. dxc5 {[%clk 0:02:52]} 6... Bxc5 {[%clk 0:02:26.4]}
7. O-O {[%clk 0:02:51.1]} 7... O-O {[%clk 0:02:25.6]} 8. Bb2 {[%clk 0:02:51.2]}
8... b6 {[%clk 0:02:23.8]} 9. c4 {[%clk 0:02:44.3]} 9... dxc4 {[%clk 0:02:16.5]}
10. Bxc4 {[%clk 0:02:42.6]} 10... Bb7 {[%clk 0:02:16.3]} 11. Nbd2 {[%clk
0:02:35.7]} 11... Nbd7 {[%clk 0:02:14.7]} 12. Qe2 {[%clk 0:02:28.1]} 12... a6
{[%clk 0:02:13.8]} 13. a4 {[%clk 0:02:26.4]} 13... Qe7 {[%clk 0:02:09.6]} 14.
Rfd1 {[%clk 0:02:24.7]} 14... Nd5 {[%clk 0:01:52.9]} 15. Ne5 {[%clk 0:02:07.6]}
15... Nxe5 {[%clk 0:01:44.7]} 16. Bxe5 {[%clk 0:02:07]} 16... Rfc8 {[%clk
0:01:44.8]} 17. Qg4 {[%clk 0:01:59.4]} 17... f6 {[%clk 0:01:36.1]} 18. Bb2
{[%clk 0:01:57.5]} 18... Bb4 {[%clk 0:01:30.4]} 19. Rac1 {[%clk 0:01:49.4]}
19... Kh8 {[%clk 0:01:18.3]} 20. h4 {[%clk 0:01:45.6]} 20... Rab8 {[%clk
0:00:55.5]} 21. h5 {[%clk 0:01:42.5]} 21... h6 {[%clk 0:00:55]} 22. Bd3 {[%clk
0:01:35.7]} 22... Qe8 {[%clk 0:00:48.3]} 23. Qe4 {[%clk 0:01:25]} 23... Qg8
{[%clk 0:00:41.2]} 24. Qg6 {[%clk 0:01:20.1]} 24... Ne7 {[%clk 0:00:29.5]} 25.
Qg4 {[%clk 0:01:13.6]} 25... Rxc1 {[%clk 0:00:18.3]} 26. Bxc1 {[%clk 0:01:11.2]}
26... Bd6 {[%clk 0:00:10.3]} 27. Bb2 {[%clk 0:01:08.9]} 27... Nd5 {[%clk
0:00:09]} 28. Nc4 {[%clk 0:00:51.2]} 28... Bc5 {[%clk 0:00:06.9]} 29. Bb1 {[%clk
0:00:44.6]} 29... Re8 {[%clk 0:00:05.8]} 30. Qg6 {[%clk 0:00:39.6]} 30... Ne7
{[%clk 0:00:04.4]} 31. Qg3 {[%clk 0:00:35.4]} 31... Nd5 {[%clk 0:00:03.9]} 32.
e4 {[%clk 0:00:30.2]} 32... Nb4 {[%clk 0:00:03.5]} 33. e5 {[%clk 0:00:30.3]}
33... f5 {[%clk 0:00:03.2]} 34. Nd6 {[%clk 0:00:21.6]} 34... Bxd6 {[%clk
0:00:02.8]} 35. exd6 {[%clk 0:00:21.8]} 35... Bd5 {[%clk 0:00:03.2]} 36. d7
{[%clk 0:00:21]} 36... Rd8 {[%clk 0:00:03.2]} 37. Qc7 {[%clk 0:00:21.2]} 1-0

[Event "*** SCC Grand Prix: Titled Tuesday Blitz"]
[Site "Chess.com"]
[Date "2020.09.08"]
[Round "5"]
[White "PawnEatingZombie"]
[Black "anon481216"]
[Result "1-0"]
[WhiteElo "2176"]
[BlackElo "2451"]
[TimeControl "180+1"]
[EndTime "10:56:31 PDT"]
[Termination "PawnEatingZombie won by resignation"]

1. d4 {[%clk 0:03:00.9]} 1... Nf6 {[%clk 0:02:57.2]} 2. c4 {[%clk 0:03:00.7]}
2... e6 {[%clk 0:02:57.3]} 3. Nc3 {[%clk 0:03:00.8]} 3... Bb4 {[%clk 0:02:56.4]}
4. Qc2 {[%clk 0:03:01.2]} 4... O-O {[%clk 0:02:54.7]} 5. e4 {[%clk 0:03:00.8]}
5... d6 {[%clk 0:02:47.1]} 6. Bd3 {[%clk 0:02:59.3]} 6... e5 {[%clk 0:02:46.5]}
7. a3 {[%clk 0:02:57.7]} 7... Bxc3+ {[%clk 0:02:43.6]} 8. bxc3 {[%clk
0:02:58.6]} 8... c5 {[%clk 0:02:40]} 9. Ne2 {[%clk 0:02:52.4]} 9... Nc6 {[%clk
0:02:37.3]} 10. O-O {[%clk 0:02:47.8]} 10... Re8 {[%clk 0:02:33.2]} 11. d5
{[%clk 0:02:20.1]} 11... Na5 {[%clk 0:02:29.3]} 12. f3 {[%clk 0:02:03.4]} 12...
b6 {[%clk 0:02:28.8]} 13. g3 {[%clk 0:01:57.6]} 13... Ba6 {[%clk 0:02:28]} 14.
f4 {[%clk 0:01:57.1]} 14... Bxc4 {[%clk 0:02:22.5]} 15. f5 {[%clk 0:01:53]}
15... Bxd3 {[%clk 0:02:09.2]} 16. Qxd3 {[%clk 0:01:52.5]} 16... c4 {[%clk
0:02:09.6]} 17. Qf3 {[%clk 0:01:46.5]} 17... Nd7 {[%clk 0:01:58.5]} 18. Be3
{[%clk 0:01:34.3]} 18... Nb3 {[%clk 0:01:50.3]} 19. Rad1 {[%clk 0:01:28.5]}
19... f6 {[%clk 0:01:38.7]} 20. g4 {[%clk 0:01:28.3]} 20... h6 {[%clk
0:01:37.9]} 21. h4 {[%clk 0:01:28.2]} 21... Kf7 {[%clk 0:01:37.9]} 22. Kg2
{[%clk 0:01:23.2]} 22... Rh8 {[%clk 0:01:36.5]} 23. Rh1 {[%clk 0:01:21.9]} 23...
Ndc5 {[%clk 0:01:31.6]} 24. g5 {[%clk 0:01:20]} 24... hxg5 {[%clk 0:01:30.9]}
25. hxg5 {[%clk 0:01:19.6]} 25... Qd7 {[%clk 0:00:58.6]} 26. Qg4 {[%clk
0:01:13.5]} 26... Rxh1 {[%clk 0:00:46.1]} 27. Rxh1 {[%clk 0:01:12.4]} 27... Rg8
{[%clk 0:00:46.6]} 28. Ng3 {[%clk 0:00:50.1]} 28... fxg5 {[%clk 0:00:20.8]} 29.
Qxg5 {[%clk 0:00:46.9]} 29... Kf8 {[%clk 0:00:20]} 30. Rh7 {[%clk 0:00:45.1]}
30... Qe7 {[%clk 0:00:17.7]} 31. Qg6 {[%clk 0:00:40.5]} 31... Nd7 {[%clk
0:00:16]} 32. Nh5 {[%clk 0:00:28.6]} 32... Nbc5 {[%clk 0:00:13.6]} 33. Nxg7
{[%clk 0:00:18]} 33... Qxg7 {[%clk 0:00:11.2]} 34. Rxg7 {[%clk 0:00:15.5]} 34...
Rxg7 {[%clk 0:00:11.3]} 35. Bh6 {[%clk 0:00:16]} 35... Nxe4 {[%clk 0:00:10.4]}
36. Bxg7+ {[%clk 0:00:13.6]} 36... Kg8 {[%clk 0:00:10.5]} 37. Bxe5+ {[%clk
0:00:12.1]} 37... Kf8 {[%clk 0:00:09.8]} 38. Bxd6+ {[%clk 0:00:12.3]} 1-0

[Event "*** SCC Grand Prix: Titled Tuesday Blitz"]
[Site "Chess.com"]
[Date "2020.09.08"]
[Round "5"]
[White "Th3_Hound"]
[Black "jeetjain"]
[Result "0-1"]
[WhiteElo "2594"]
[BlackElo "2429"]
[TimeControl "180+1"]
[EndTime "10:56:32 PDT"]
[Termination "jeetjain won by resignation"]

1. e4 {[%clk 0:03:00.9]} 1... e5 {[%clk 0:02:59.5]} 2. Nf3 {[%clk 0:03:00.5]}
2... Nc6 {[%clk 0:02:59.5]} 3. Bb5 {[%clk 0:03:00.7]} 3... a6 {[%clk 0:02:59.5]}
4. Ba4 {[%clk 0:03:00.1]} 4... Nf6 {[%clk 0:02:59.4]} 5. O-O {[%clk 0:02:59.8]}
5... Be7 {[%clk 0:02:57.6]} 6. Re1 {[%clk 0:02:58.9]} 6... b5 {[%clk 0:02:57.6]}
7. Bb3 {[%clk 0:02:59.4]} 7... d6 {[%clk 0:02:58.1]} 8. c3 {[%clk 0:02:59.3]}
8... O-O {[%clk 0:02:56.8]} 9. h3 {[%clk 0:02:59.5]} 9... Na5 {[%clk 0:02:56.9]}
10. Bc2 {[%clk 0:02:59.7]} 10... c5 {[%clk 0:02:57.1]} 11. d4 {[%clk 0:03:00]}
11... Qc7 {[%clk 0:02:57.7]} 12. Nbd2 {[%clk 0:02:58.1]} 12... Bd7 {[%clk
0:02:57.2]} 13. Nf1 {[%clk 0:02:57]} 13... Nc4 {[%clk 0:02:57.3]} 14. b3 {[%clk
0:02:52.1]} 14... Nb6 {[%clk 0:02:57.3]} 15. Ng3 {[%clk 0:02:49.8]} 15... c4
{[%clk 0:02:54.2]} 16. Nh2 {[%clk 0:02:46.5]} 16... cxb3 {[%clk 0:02:46.5]} 17.
Bxb3 {[%clk 0:02:35.7]} 17... Qxc3 {[%clk 0:02:46.3]} 18. Ba3 {[%clk 0:02:23.7]}
18... Qxd4 {[%clk 0:02:34.6]} 19. Qxd4 {[%clk 0:02:16.6]} 19... exd4 {[%clk
0:02:34.5]} 20. e5 {[%clk 0:02:12.5]} 20... Ne8 {[%clk 0:02:32.5]} 21. Rad1
{[%clk 0:02:12]} 21... a5 {[%clk 0:02:17.9]} 22. exd6 {[%clk 0:02:11.7]} 22...
Bxd6 {[%clk 0:02:15.3]} 23. Rxe8 {[%clk 0:01:56.8]} 23... Bxa3 {[%clk
0:02:11.3]} 24. Rxa8 {[%clk 0:01:54]} 24... Rxa8 {[%clk 0:02:09.5]} 25. Rxd4
{[%clk 0:01:54.1]} 25... a4 {[%clk 0:02:01.9]} 26. Bc2 {[%clk 0:01:53.8]} 26...
Bc5 {[%clk 0:01:58.2]} 27. Rd1 {[%clk 0:01:51.7]} 27... Be6 {[%clk 0:01:54.6]}
28. Ne4 {[%clk 0:01:52.1]} 28... Be7 {[%clk 0:01:53]} 29. Bb1 {[%clk 0:01:47.7]}
29... b4 {[%clk 0:01:35.6]} 30. Nf3 {[%clk 0:01:45.9]} 30... b3 {[%clk
0:01:31.2]} 31. axb3 {[%clk 0:01:46]} 31... Bxb3 {[%clk 0:01:31.3]} 32. Rd3
{[%clk 0:01:45.8]} 32... Bc4 {[%clk 0:01:27.7]} 33. Rd2 {[%clk 0:01:33.1]} 33...
a3 {[%clk 0:01:15]} 34. Ba2 {[%clk 0:01:32.9]} 34... Bb4 {[%clk 0:01:08.5]} 35.
Bxc4 {[%clk 0:01:17.7]} 35... Bxd2 {[%clk 0:01:04.8]} 36. Ba2 {[%clk 0:01:16.4]}
36... Bb4 {[%clk 0:00:39.1]} 37. Ne5 {[%clk 0:01:12.9]} 37... Kf8 {[%clk
0:00:16.8]} 38. Nd3 {[%clk 0:01:07.5]} 38... Be7 {[%clk 0:00:16.2]} 39. Kf1
{[%clk 0:01:01.8]} 39... Rc8 {[%clk 0:00:16.2]} 40. Ne1 {[%clk 0:00:45.4]} 40...
Rc1 {[%clk 0:00:12.6]} 41. Ke2 {[%clk 0:00:39.2]} 41... Ra1 {[%clk 0:00:12.6]}
42. Bb3 {[%clk 0:00:39]} 42... a2 {[%clk 0:00:12.7]} 43. Nc2 {[%clk 0:00:37.9]}
43... Rc1 {[%clk 0:00:11.8]} 0-1

[Event "*** SCC Grand Prix: Titled Tuesday Blitz"]
[Site "Chess.com"]
[Date "2020.09.08"]
[Round "5"]
[White "aNaartjieZA"]
[Black "StellarChessPro"]
[Result "1/2-1/2"]
[WhiteElo "2472"]
[BlackElo "2270"]
[TimeControl "180+1"]
[EndTime "10:56:32 PDT"]
[Termination "Game drawn by repetition"]

1. e4 {[%clk 0:03:00.9]} 1... g6 {[%clk 0:03:00.7]} 2. Nf3 {[%clk 0:03:01]} 2...
Bg7 {[%clk 0:03:01.2]} 3. g3 {[%clk 0:03:01.3]} 3... d6 {[%clk 0:03:01.2]} 4.
Bg2 {[%clk 0:03:01.5]} 4... Nf6 {[%clk 0:03:02]} 5. d3 {[%clk 0:03:01.5]} 5...
O-O {[%clk 0:03:02.4]} 6. O-O {[%clk 0:03:02.1]} 6... e5 {[%clk 0:03:03.3]} 7.
Nc3 {[%clk 0:03:01.9]} 7... c5 {[%clk 0:03:02.7]} 8. h3 {[%clk 0:03:01]} 8... a6
{[%clk 0:03:03.2]} 9. a4 {[%clk 0:03:00.8]} 9... Nc6 {[%clk 0:03:03.5]} 10. Nd2
{[%clk 0:03:01]} 10... Nh5 {[%clk 0:03:02]} 11. Nc4 {[%clk 0:02:59.5]} 11... Na5
{[%clk 0:02:52.2]} 12. Kh2 {[%clk 0:02:49.3]} 12... Nxc4 {[%clk 0:02:49.9]} 13.
dxc4 {[%clk 0:02:49.4]} 13... b6 {[%clk 0:02:45]} 14. Be3 {[%clk 0:02:46.3]}
14... Rb8 {[%clk 0:02:40.3]} 15. Bf3 {[%clk 0:02:37.4]} 15... Nf6 {[%clk
0:02:39]} 16. Qd3 {[%clk 0:02:37.4]} 16... Ne8 {[%clk 0:02:29.4]} 17. Rad1
{[%clk 0:02:35]} 17... f5 {[%clk 0:02:29.6]} 18. exf5 {[%clk 0:02:34]} 18...
gxf5 {[%clk 0:02:28.2]} 19. Bd5+ {[%clk 0:02:34]} 19... Kh8 {[%clk 0:02:28]} 20.
f4 {[%clk 0:02:33.5]} 20... e4 {[%clk 0:02:27.7]} 21. Qd2 {[%clk 0:02:33.4]}
21... Nc7 {[%clk 0:02:03]} 22. b3 {[%clk 0:02:31.3]} 22... Qf6 {[%clk
0:02:02.5]} 23. Ne2 {[%clk 0:02:30.1]} 23... Nxd5 {[%clk 0:02:01.1]} 24. Qxd5
{[%clk 0:02:27.2]} 24... Rd8 {[%clk 0:01:59.8]} 25. Bd2 {[%clk 0:02:12.6]} 25...
Be6 {[%clk 0:01:58.7]} 26. Bc3 {[%clk 0:02:11.5]} 26... Qf7 {[%clk 0:01:39.1]}
27. Qd2 {[%clk 0:02:03.6]} 27... b5 {[%clk 0:01:34.7]} 28. axb5 {[%clk
0:02:02.9]} 28... axb5 {[%clk 0:01:35.6]} 29. Bxg7+ {[%clk 0:02:01.5]} 29...
Qxg7 {[%clk 0:01:35.2]} 30. cxb5 {[%clk 0:02:01.6]} 30... d5 {[%clk 0:01:33.9]}
31. Qa5 {[%clk 0:01:58.8]} 31... d4 {[%clk 0:01:32.5]} 32. b4 {[%clk 0:01:55.3]}
32... d3 {[%clk 0:01:31.9]} 33. cxd3 {[%clk 0:01:53.9]} 33... exd3 {[%clk
0:01:32.8]} 34. Nc1 {[%clk 0:01:50.4]} 34... c4 {[%clk 0:01:31.5]} 35. Rf2
{[%clk 0:01:45.1]} 35... Rg8 {[%clk 0:01:30.9]} 36. Rg1 {[%clk 0:01:43]} 36...
Qd4 {[%clk 0:01:29.5]} 37. Rgg2 {[%clk 0:01:41.9]} 37... Bd5 {[%clk 0:01:28.2]}
38. Qc7 {[%clk 0:01:37.4]} 38... Bxg2 {[%clk 0:01:25.7]} 39. Rxg2 {[%clk
0:01:37.5]} 39... Rbc8 {[%clk 0:01:13.7]} 40. Qf7 {[%clk 0:01:31.4]} 40... d2
{[%clk 0:01:05.7]} 41. Ne2 {[%clk 0:01:30.9]} 41... d1=Q {[%clk 0:01:03.1]} 42.
Nxd4 {[%clk 0:01:30.4]} 42... Qxd4 {[%clk 0:01:04]} 43. b6 {[%clk 0:01:29.6]}
43... c3 {[%clk 0:00:58.6]} 44. b7 {[%clk 0:01:29.6]} 44... Rcf8 {[%clk
0:00:57.4]} 45. Qc7 {[%clk 0:01:25.8]} 45... Qe3 {[%clk 0:00:53.9]} 46. b5
{[%clk 0:01:20]} 46... Qd4 {[%clk 0:00:49.4]} 47. b6 {[%clk 0:01:17.4]} 47...
Qf6 {[%clk 0:00:43.4]} 48. Rc2 {[%clk 0:01:15.9]} 48... Qg7 {[%clk 0:00:42.6]}
49. Rxc3 {[%clk 0:01:14.2]} 49... Qd4 {[%clk 0:00:39]} 50. Rc2 {[%clk
0:01:09.7]} 50... Qg7 {[%clk 0:00:33.9]} 51. Rc3 {[%clk 0:01:06.1]} 51... h5
{[%clk 0:00:31.4]} 52. h4 {[%clk 0:01:05.8]} 52... Qf7 {[%clk 0:00:24.6]} 53.
Qe5+ {[%clk 0:01:04.6]} 53... Qg7 {[%clk 0:00:24.4]} 54. Qc7 {[%clk 0:00:59.7]}
54... Qg4 {[%clk 0:00:22.2]} 55. Qe5+ {[%clk 0:00:57.8]} 55... Qg7 {[%clk
0:00:22.2]} 56. Qc7 {[%clk 0:00:57.5]} 1/2-1/2

[Event "*** SCC Grand Prix: Titled Tuesday Blitz"]
[Site "Chess.com"]
[Date "2020.09.08"]
[Round "5"]
[White "xamax2000"]
[Black "Mambastik-Fantastic"]
[Result "1-0"]
[WhiteElo "2679"]
[BlackElo "2294"]
[TimeControl "180+1"]
[EndTime "10:56:32 PDT"]
[Termination "xamax2000 won by resignation"]

1. d4 {[%clk 0:03:00.9]} 1... Nf6 {[%clk 0:02:58.9]} 2. c4 {[%clk 0:03:00.7]}
2... c5 {[%clk 0:02:58.8]} 3. d5 {[%clk 0:03:00.5]} 3... e5 {[%clk 0:02:58.6]}
4. Nc3 {[%clk 0:03:00.1]} 4... d6 {[%clk 0:02:58.9]} 5. e4 {[%clk 0:03:00.6]}
5... Nbd7 {[%clk 0:02:59]} 6. Bd3 {[%clk 0:02:58.2]} 6... Be7 {[%clk 0:02:55]}
7. Be3 {[%clk 0:02:53]} 7... a6 {[%clk 0:02:53.4]} 8. a4 {[%clk 0:02:42.8]} 8...
h5 {[%clk 0:02:47.5]} 9. f3 {[%clk 0:01:52.7]} 9... h4 {[%clk 0:02:42.1]} 10.
Nge2 {[%clk 0:01:49.4]} 10... Nh5 {[%clk 0:02:41.5]} 11. Qd2 {[%clk 0:01:49.2]}
11... Kf8 {[%clk 0:02:40.8]} 12. g4 {[%clk 0:01:45.1]} 12... Nhf6 {[%clk
0:02:27.2]} 13. Rg1 {[%clk 0:01:34.2]} 13... g6 {[%clk 0:02:27.1]} 14. Kd1
{[%clk 0:01:31.6]} 14... Kg7 {[%clk 0:02:27]} 15. Kc2 {[%clk 0:01:31.9]} 15...
Nh7 {[%clk 0:02:25.3]} 16. g5 {[%clk 0:01:27.5]} 16... Nhf8 {[%clk 0:02:11.7]}
17. Raf1 {[%clk 0:01:24.4]} 17... Rh5 {[%clk 0:02:11.2]} 18. f4 {[%clk
0:00:52.2]} 18... exf4 {[%clk 0:02:08.4]} 19. Nxf4 {[%clk 0:00:51.5]} 19... Rxg5
{[%clk 0:02:06.6]} 20. Rxg5 {[%clk 0:00:51]} 20... Bxg5 {[%clk 0:02:06]} 21.
Nh5+ {[%clk 0:00:50.3]} 21... Kh6 {[%clk 0:01:50.3]} 22. Nf6 {[%clk 0:00:22.5]}
22... Bxe3 {[%clk 0:01:25.4]} 23. Qxe3+ {[%clk 0:00:23.4]} 23... Kg7 {[%clk
0:01:24.3]} 24. Ng4 {[%clk 0:00:24]} 24... Nh7 {[%clk 0:01:08.7]} 25. Qh6+
{[%clk 0:00:16.1]} 25... Kg8 {[%clk 0:01:06.8]} 26. Rxf7 {[%clk 0:00:15.9]}
26... Kxf7 {[%clk 0:00:53]} 27. Qxh7+ {[%clk 0:00:15.5]} 27... Ke8 {[%clk
0:00:46.6]} 28. Qxg6+ {[%clk 0:00:14]} 28... Kf8 {[%clk 0:00:42.5]} 29. Qh6+
{[%clk 0:00:14]} 29... Ke8 {[%clk 0:00:35.5]} 30. e5 {[%clk 0:00:13.4]} 30...
Nxe5 {[%clk 0:00:30.1]} 31. Nxe5 {[%clk 0:00:11.1]} 31... dxe5 {[%clk
0:00:28.3]} 32. d6 {[%clk 0:00:09.1]} 32... Kd7 {[%clk 0:00:20.5]} 33. Bf5+
{[%clk 0:00:08.7]} 33... Kc6 {[%clk 0:00:18.5]} 34. d7+ {[%clk 0:00:09]} 34...
Kc7 {[%clk 0:00:15.9]} 35. Nd5+ {[%clk 0:00:09.4]} 35... Kb8 {[%clk 0:00:13.7]}
36. dxc8=Q+ {[%clk 0:00:09.3]} 36... Qxc8 {[%clk 0:00:13.9]} 37. Qd6+ {[%clk
0:00:09.5]} 37... Ka7 {[%clk 0:00:13.2]} 38. Qb6+ {[%clk 0:00:10.1]} 38... Kb8
{[%clk 0:00:13.1]} 39. Bxc8 {[%clk 0:00:11]} 1-0

[Event "*** SCC Grand Prix: Titled Tuesday Blitz"]
[Site "Chess.com"]
[Date "2020.09.08"]
[Round "5"]
[White "KonstantinB_1983"]
[Black "Leonid_Starozhilov"]
[Result "1-0"]
[WhiteElo "2529"]
[BlackElo "2678"]
[TimeControl "180+1"]
[EndTime "10:56:34 PDT"]
[Termination "KonstantinB_1983 won on time"]

1. d4 {[%clk 0:03:00.9]} 1... Nf6 {[%clk 0:02:59.9]} 2. c4 {[%clk 0:03:00.6]}
2... g6 {[%clk 0:03:00.3]} 3. Nc3 {[%clk 0:02:59.9]} 3... Bg7 {[%clk 0:03:00.9]}
4. e4 {[%clk 0:02:59.7]} 4... d6 {[%clk 0:03:01.3]} 5. Nge2 {[%clk 0:03:00]}
5... c6 {[%clk 0:03:00.3]} 6. Ng3 {[%clk 0:03:00]} 6... a6 {[%clk 0:02:59.3]} 7.
a4 {[%clk 0:02:58.9]} 7... a5 {[%clk 0:02:59.5]} 8. Be2 {[%clk 0:02:58]} 8...
Na6 {[%clk 0:02:59.8]} 9. O-O {[%clk 0:02:55]} 9... O-O {[%clk 0:02:59]} 10. Be3
{[%clk 0:02:52.1]} 10... Nb4 {[%clk 0:02:59.3]} 11. f3 {[%clk 0:02:47]} 11... e5
{[%clk 0:02:38.2]} 12. Qd2 {[%clk 0:02:45]} 12... Qe7 {[%clk 0:02:30.7]} 13.
Rfd1 {[%clk 0:02:41.4]} 13... Nd7 {[%clk 0:02:11.8]} 14. Rac1 {[%clk 0:02:37.2]}
14... Re8 {[%clk 0:01:36.8]} 15. Bg5 {[%clk 0:02:24.2]} 15... Bf6 {[%clk
0:01:33.9]} 16. Bxf6 {[%clk 0:02:18.3]} 16... Qxf6 {[%clk 0:01:14.9]} 17. dxe5
{[%clk 0:02:17.1]} 17... dxe5 {[%clk 0:01:15.8]} 18. Qe3 {[%clk 0:02:11.6]}
18... Qe7 {[%clk 0:01:14.8]} 19. Qh6 {[%clk 0:01:29.9]} 19... Nc5 {[%clk
0:01:08]} 20. h4 {[%clk 0:01:28.4]} 20... Be6 {[%clk 0:00:41]} 21. Nd5 {[%clk
0:00:56.5]} 21... cxd5 {[%clk 0:00:14.3]} 22. cxd5 {[%clk 0:00:55.1]} 22... b6
{[%clk 0:00:09.4]} 23. dxe6 {[%clk 0:00:53.6]} 23... Qxe6 {[%clk 0:00:05.3]} 24.
Bc4 {[%clk 0:00:46.7]} 24... Qf6 {[%clk 0:00:05.4]} 25. Nh5 {[%clk 0:00:39.4]}
25... Qh8 {[%clk 0:00:05]} 26. Rd6 {[%clk 0:00:19.2]} 26... Rf8 {[%clk
0:00:02.8]} 27. Nf6+ {[%clk 0:00:17.8]} 27... Qxf6 {[%clk 0:00:03.2]} 28. Rxf6
{[%clk 0:00:17.9]} 28... Rad8 {[%clk 0:00:03.8]} 29. h5 {[%clk 0:00:16.2]} 29...
Nd7 {[%clk 0:00:04.2]} 30. Rd6 {[%clk 0:00:14.3]} 30... Nc5 {[%clk 0:00:04.2]}
31. Rcd1 {[%clk 0:00:13.4]} 31... Rxd6 {[%clk 0:00:03.8]} 32. Rxd6 {[%clk
0:00:13]} 32... Re8 {[%clk 0:00:03.4]} 33. hxg6 {[%clk 0:00:12.1]} 33... Re7
{[%clk 0:00:04]} 34. Qxh7+ {[%clk 0:00:10.8]} 1-0

[Event "*** SCC Grand Prix: Titled Tuesday Blitz"]
[Site "Chess.com"]
[Date "2020.09.08"]
[Round "5"]
[White "Sn00pPawn"]
[Black "floplover"]
[Result "0-1"]
[WhiteElo "2020"]
[BlackElo "2320"]
[TimeControl "180+1"]
[EndTime "10:56:35 PDT"]
[Termination "floplover won on time"]

1. d4 {[%clk 0:03:00.9]} 1... d5 {[%clk 0:02:55.6]} 2. c4 {[%clk 0:02:58.9]}
2... e6 {[%clk 0:02:55.4]} 3. Nc3 {[%clk 0:02:58.2]} 3... Bb4 {[%clk 0:02:55.2]}
4. Nf3 {[%clk 0:02:55.4]} 4... Nf6 {[%clk 0:02:54.7]} 5. Bg5 {[%clk 0:02:53.4]}
5... dxc4 {[%clk 0:02:54.1]} 6. Qa4+ {[%clk 0:02:42.5]} 6... Nc6 {[%clk
0:02:53.4]} 7. Rc1 {[%clk 0:02:32.3]} 7... O-O {[%clk 0:02:38.1]} 8. a3 {[%clk
0:02:18.8]} 8... Bxc3+ {[%clk 0:02:19.3]} 9. bxc3 {[%clk 0:02:12.7]} 9... Qd5
{[%clk 0:02:17.4]} 10. Bxf6 {[%clk 0:02:09.8]} 10... gxf6 {[%clk 0:02:17.1]} 11.
Nd2 {[%clk 0:02:10.7]} 11... b5 {[%clk 0:02:15.8]} 12. e4 {[%clk 0:02:05.6]}
12... bxa4 {[%clk 0:02:12.9]} 13. exd5 {[%clk 0:02:05.7]} 13... exd5 {[%clk
0:02:13.8]} 14. g4 {[%clk 0:01:46.5]} 14... Re8+ {[%clk 0:02:12.6]} 15. Be2
{[%clk 0:01:45.6]} 15... Rb8 {[%clk 0:02:11.4]} 16. Rc2 {[%clk 0:01:37.5]} 16...
Na5 {[%clk 0:01:53.6]} 17. Kd1 {[%clk 0:01:32]} 17... Nb3 {[%clk 0:01:48.9]} 18.
Re1 {[%clk 0:01:15.5]} 18... c6 {[%clk 0:01:23.8]} 19. Rb2 {[%clk 0:00:50]}
19... Bd7 {[%clk 0:01:16.3]} 20. Nf1 {[%clk 0:00:36.4]} 20... Re7 {[%clk
0:01:02.9]} 21. Ne3 {[%clk 0:00:28.1]} 21... Rbe8 {[%clk 0:00:58.1]} 22. Bf3
{[%clk 0:00:21.3]} 22... Kg7 {[%clk 0:00:51]} 23. Rbe2 {[%clk 0:00:19.3]} 23...
Kg6 {[%clk 0:00:48]} 24. h4 {[%clk 0:00:17.7]} 24... h6 {[%clk 0:00:47.9]} 25.
Nxd5 {[%clk 0:00:15.6]} 25... Rxe2 {[%clk 0:00:37.4]} 26. Nf4+ {[%clk
0:00:15.3]} 26... Kg7 {[%clk 0:00:37.1]} 27. Rxe2 {[%clk 0:00:14]} 27... f5
{[%clk 0:00:23.1]} 28. Nh5+ {[%clk 0:00:11.6]} 28... Kg6 {[%clk 0:00:19.3]} 29.
gxf5+ {[%clk 0:00:11.7]} 29... Kxf5 {[%clk 0:00:18.5]} 30. Ng7+ {[%clk
0:00:11.1]} 30... Kf4 {[%clk 0:00:18.4]} 31. Nxe8 {[%clk 0:00:08.4]} 31... Kxf3
{[%clk 0:00:18.8]} 32. Nf6 {[%clk 0:00:06.7]} 32... Bf5 {[%clk 0:00:17.6]} 33.
Nh5 {[%clk 0:00:04.3]} 33... Bd3 {[%clk 0:00:16.9]} 34. Re3+ {[%clk 0:00:02.9]}
34... Kxf2 {[%clk 0:00:17.8]} 35. Rg3 {[%clk 0:00:02.9]} 35... Be2+ {[%clk
0:00:16.7]} 0-1